[Event "Titled Tuesday Blitz August 1 Late 2023"]
[White "Ardelean, George-Catalin"]
[Black "feuervogel1000000"]
[WhiteFideId "1207091"]
[WhiteElo "2673"]
[BlackElo "2518"]
[Result "1-0"]
[Round "7"]
[TimeControl "180+1"]
[Date "2023.08.01"]
[WhiteClock "0:00:11"]
[BlackClock "0:00:04"]
[Board "39"]

1. d4 {[%clk 0:03:00]}  Nf6 {[%clk 0:02:57]} 2. Bf4 {[%clk 0:02:59]}  d5 {[%clk 0:02:56]} 3. e3 {[%clk 0:02:59]}  c5 {[%clk 0:02:56]} 4. Nc3 {[%clk 0:02:59]}  a6 {[%clk 0:02:51]} 5. dxc5 {[%clk 0:02:58]}  e6 {[%clk 0:02:51]} 6. b4 {[%clk 0:02:54]}  Nc6 {[%clk 0:02:49]} 7. a3 {[%clk 0:02:51]}  a5 {[%clk 0:02:43]} 8. Rb1 {[%clk 0:02:50]}  axb4 {[%clk 0:02:43]} 9. axb4 {[%clk 0:02:51]}  Be7 {[%clk 0:02:38]} 10. Nf3 {[%clk 0:02:34]}  O-O {[%clk 0:02:36]} 11. Be2 {[%clk 0:02:33]}  Bd7 {[%clk 0:02:30]} 12. Nb5 {[%clk 0:02:26]}  Ne4 {[%clk 0:02:27]} 13. O-O {[%clk 0:02:15]}  b6 {[%clk 0:02:23]} 14. Bc7 {[%clk 0:02:12]}  Qc8 {[%clk 0:02:21]} 15. Bxb6 {[%clk 0:02:07]}  Bf6 {[%clk 0:02:20]} 16. c4 {[%clk 0:02:04]}  Ra2 {[%clk 0:02:01]} 17. cxd5 {[%clk 0:01:59]}  exd5 {[%clk 0:02:02]} 18. Bd3 {[%clk 0:01:50]}  Bg4 {[%clk 0:01:59]} 19. Nd6 {[%clk 0:01:34]}  Nxd6 {[%clk 0:01:55]} 20. cxd6 {[%clk 0:01:35]}  Ne5 {[%clk 0:01:47]} 21. Rc1 {[%clk 0:01:06]}  Qb7 {[%clk 0:01:22]} 22. Bc5 {[%clk 0:01:01]}  Bxf3 {[%clk 0:01:20]} 23. gxf3 {[%clk 0:01:01]}  Qd7 {[%clk 0:01:10]} 24. Kg2 {[%clk 0:00:53]}  h5 {[%clk 0:01:03]} 25. Bb1 {[%clk 0:00:53]}  Rb2 {[%clk 0:01:00]} 26. Qxd5 {[%clk 0:00:46]}  h4 {[%clk 0:00:59]} 27. h3 {[%clk 0:00:45]}  Rc8 {[%clk 0:00:52]} 28. Qe4 {[%clk 0:00:45]}  g6 {[%clk 0:00:51]} 29. Bd4 {[%clk 0:00:43]}  Rxc1 {[%clk 0:00:47]} 30. Rxc1 {[%clk 0:00:39]}  Rxb4 {[%clk 0:00:42]} 31. Ba2 {[%clk 0:00:26]}  Qxd6 {[%clk 0:00:34]} 32. Qa8+ {[%clk 0:00:25]}  Rb8 {[%clk 0:00:32]} 33. Rc8+ {[%clk 0:00:24]}  Rxc8 {[%clk 0:00:32]} 34. Qxc8+ {[%clk 0:00:25]}  Kg7 {[%clk 0:00:33]} 35. Qb7 {[%clk 0:00:21]}  Nd7 {[%clk 0:00:31]} 36. Qb3 {[%clk 0:00:21]}  Qe7 {[%clk 0:00:30]} 37. Bxf6+ {[%clk 0:00:20]}  Nxf6 {[%clk 0:00:31]} 38. Qc4 {[%clk 0:00:18]}  Nd7 {[%clk 0:00:29]} 39. f4 {[%clk 0:00:18]}  Nf6 {[%clk 0:00:28]} 40. Qd4 {[%clk 0:00:18]}  Qb7+ {[%clk 0:00:28]} 41. Kg1 {[%clk 0:00:15]}  Qa6 {[%clk 0:00:25]} 42. Bc4 {[%clk 0:00:15]}  Qc6 {[%clk 0:00:24]} 43. Be2 {[%clk 0:00:13]}  Qc1+ {[%clk 0:00:23]} 44. Kg2 {[%clk 0:00:13]}  Qc6+ {[%clk 0:00:22]} 45. Bf3 {[%clk 0:00:14]}  Qe6 {[%clk 0:00:23]} 46. f5 {[%clk 0:00:13]}  Qxf5 {[%clk 0:00:22]} 47. Qxh4 {[%clk 0:00:13]}  Nh7 {[%clk 0:00:20]} 48. Qd4+ {[%clk 0:00:13]}  Kh6 {[%clk 0:00:19]} 49. Bg4 {[%clk 0:00:13]}  Qb5 {[%clk 0:00:17]} 50. h4 {[%clk 0:00:10]}  Qc6+ {[%clk 0:00:15]} 51. Bf3 {[%clk 0:00:10]}  Qf6 {[%clk 0:00:15]} 52. Qxf6 {[%clk 0:00:10]}  Nxf6 {[%clk 0:00:16]} 53. Kg3 {[%clk 0:00:10]}  Kg7 {[%clk 0:00:15]} 54. Kf4 {[%clk 0:00:10]}  Nd7 {[%clk 0:00:15]} 55. h5 {[%clk 0:00:10]}  gxh5 {[%clk 0:00:15]} 56. Bxh5 {[%clk 0:00:11]}  Kf6 {[%clk 0:00:15]} 57. Bg4 {[%clk 0:00:11]}  Ne5 {[%clk 0:00:15]} 58. e4 {[%clk 0:00:10]}  Nd3+ {[%clk 0:00:11]} 59. Ke3 {[%clk 0:00:10]}  Ne5 {[%clk 0:00:11]} 60. Be2 {[%clk 0:00:11]}  Ke6 {[%clk 0:00:10]} 61. f4 {[%clk 0:00:11]}  Nc6 {[%clk 0:00:10]} 62. Bc4+ {[%clk 0:00:11]}  Ke7 {[%clk 0:00:10]} 63. Bd5 {[%clk 0:00:11]}  Nb4 {[%clk 0:00:09]} 64. Kd4 {[%clk 0:00:11]}  f6 {[%clk 0:00:08]} 65. Bc4 {[%clk 0:00:09]}  Nc6+ {[%clk 0:00:08]} 66. Kc5 {[%clk 0:00:09]}  Nd8 {[%clk 0:00:08]} 67. Bd5 {[%clk 0:00:09]}  Ne6+ {[%clk 0:00:06]} 68. Bxe6 {[%clk 0:00:09]}  Kxe6 {[%clk 0:00:07]} 69. Kc6 {[%clk 0:00:09]}  Ke7 {[%clk 0:00:05]} 70. f5 {[%clk 0:00:10]}  Ke8 {[%clk 0:00:03]} 71. Kd6 {[%clk 0:00:10]}  Kf7 {[%clk 0:00:03]} 72. Kd7 {[%clk 0:00:10]}  Kg7 {[%clk 0:00:04]} 73. Ke7 {[%clk 0:00:10]}  Kh6 {[%clk 0:00:04]} 74. Kxf6 {[%clk 0:00:11]} 1-0


[Site "https://www.chess.com"]

[Event "Titled Tuesday Blitz August 1 Late 2023"]
[White "Kazakov, Mikhail"]
[Black "brm72"]
[WhiteFideId "14102749"]
[WhiteElo "2450"]
[BlackElo "2615"]
[Result "0-1"]
[Round "7"]
[TimeControl "180+1"]
[Date "2023.08.01"]
[WhiteClock "0:00:02"]
[BlackClock "0:00:03"]
[Board "46"]

1. d4 {[%clk 0:02:58]}  Nf6 {[%clk 0:02:59]} 2. c4 {[%clk 0:02:58]}  g6 {[%clk 0:02:59]} 3. Nc3 {[%clk 0:02:57]}  d5 {[%clk 0:02:59]} 4. cxd5 {[%clk 0:02:55]}  Nxd5 {[%clk 0:03:00]} 5. e4 {[%clk 0:02:55]}  Nxc3 {[%clk 0:02:58]} 6. bxc3 {[%clk 0:02:56]}  Bg7 {[%clk 0:02:58]} 7. Ba3 {[%clk 0:02:56]}  O-O {[%clk 0:02:55]} 8. Qb3 {[%clk 0:02:56]}  Nd7 {[%clk 0:02:46]} 9. Rd1 {[%clk 0:02:55]}  c5 {[%clk 0:02:43]} 10. Nf3 {[%clk 0:02:44]}  Qc7 {[%clk 0:02:42]} 11. d5 {[%clk 0:02:37]}  Ne5 {[%clk 0:02:26]} 12. Be2 {[%clk 0:02:09]}  Bg4 {[%clk 0:02:21]} 13. c4 {[%clk 0:02:03]}  Rab8 {[%clk 0:01:51]} 14. O-O {[%clk 0:01:50]}  Bxf3 {[%clk 0:01:46]} 15. Bxf3 {[%clk 0:01:51]}  a6 {[%clk 0:01:36]} 16. Be2 {[%clk 0:01:45]}  g5 {[%clk 0:01:35]} 17. Bc1 {[%clk 0:01:40]}  h6 {[%clk 0:01:35]} 18. f4 {[%clk 0:01:39]}  Ng6 {[%clk 0:01:19]} 19. fxg5 {[%clk 0:01:31]}  hxg5 {[%clk 0:01:20]} 20. Bxg5 {[%clk 0:01:26]}  Be5 {[%clk 0:01:15]} 21. Qh3 {[%clk 0:01:24]}  b5 {[%clk 0:01:09]} 22. cxb5 {[%clk 0:01:20]}  axb5 {[%clk 0:01:10]} 23. Bh5 {[%clk 0:01:19]}  Qd6 {[%clk 0:01:03]} 24. Rf5 {[%clk 0:01:12]}  Bd4+ {[%clk 0:00:39]} 25. Kh1 {[%clk 0:01:10]}  Kg7 {[%clk 0:00:38]} 26. Bxg6 {[%clk 0:00:57]}  Qxg6 {[%clk 0:00:34]} 27. Bxe7 {[%clk 0:00:51]}  Rh8 {[%clk 0:00:34]} 28. Rg5 {[%clk 0:00:28]}  Rxh3 {[%clk 0:00:31]} 29. gxh3 {[%clk 0:00:24]}  Qxg5 {[%clk 0:00:26]} 30. Bxg5 {[%clk 0:00:24]}  f6 {[%clk 0:00:26]} 31. Bf4 {[%clk 0:00:23]}  Re8 {[%clk 0:00:26]} 32. Bc7 {[%clk 0:00:17]}  Kf7 {[%clk 0:00:23]} 33. d6 {[%clk 0:00:15]}  Ke6 {[%clk 0:00:24]} 34. Kg2 {[%clk 0:00:16]}  Ra8 {[%clk 0:00:22]} 35. Rd2 {[%clk 0:00:15]}  Kd7 {[%clk 0:00:21]} 36. Kf3 {[%clk 0:00:15]}  Be5 {[%clk 0:00:19]} 37. h4 {[%clk 0:00:14]}  c4 {[%clk 0:00:18]} 38. h5 {[%clk 0:00:13]}  b4 {[%clk 0:00:16]} 39. Rc2 {[%clk 0:00:13]}  b3 {[%clk 0:00:14]} 40. axb3 {[%clk 0:00:12]}  cxb3 {[%clk 0:00:15]} 41. Rc5 {[%clk 0:00:11]}  b2 {[%clk 0:00:14]} 42. Rb5 {[%clk 0:00:11]}  Ra1 {[%clk 0:00:14]} 43. h6 {[%clk 0:00:11]}  b1=Q {[%clk 0:00:12]} 44. Rxb1 {[%clk 0:00:10]}  Rxb1 {[%clk 0:00:13]} 45. Kg4 {[%clk 0:00:10]}  Ra1 {[%clk 0:00:07]} 46. Kf5 {[%clk 0:00:09]}  Ra8 {[%clk 0:00:06]} 47. h4 {[%clk 0:00:09]}  Rh8 {[%clk 0:00:03]} 48. Kg6 {[%clk 0:00:09]}  Ke6 {[%clk 0:00:03]} 49. h5 {[%clk 0:00:06]}  Rg8+ {[%clk 0:00:02]} 50. Kh7 {[%clk 0:00:05]}  Kf7 {[%clk 0:00:03]} 51. Ba5 {[%clk 0:00:02]}  f5 {[%clk 0:00:03]} 52. exf5 {[%clk 0:00:02]}  Rh8# {[%clk 0:00:03]} 0-1


[Site "https://www.chess.com"]

[Event "Titled Tuesday Blitz August 1 Late 2023"]
[White "Haszon, David"]
[Black "Hambleton, Aman"]
[WhiteFideId "733610"]
[BlackFideId "2606577"]
[WhiteElo "2506"]
[BlackElo "2796"]
[Result "1-0"]
[Round "7"]
[TimeControl "180+1"]
[Date "2023.08.01"]
[WhiteClock "0:01:18"]
[BlackClock "0:00:00"]
[Board "50"]

1. d4 {[%clk 0:03:00]}  e5 {[%clk 0:02:58]} 2. e4 {[%clk 0:02:59]}  exd4 {[%clk 0:02:54]} 3. c3 {[%clk 0:02:59]}  d3 {[%clk 0:02:50]} 4. Bxd3 {[%clk 0:02:59]}  Bc5 {[%clk 0:02:51]} 5. Nf3 {[%clk 0:02:54]}  d6 {[%clk 0:02:51]} 6. O-O {[%clk 0:02:54]}  Nf6 {[%clk 0:02:52]} 7. Bg5 {[%clk 0:02:52]}  h6 {[%clk 0:02:52]} 8. Bh4 {[%clk 0:02:51]}  O-O {[%clk 0:02:52]} 9. b4 {[%clk 0:02:48]}  Bb6 {[%clk 0:02:52]} 10. Na3 {[%clk 0:02:46]}  a6 {[%clk 0:02:39]} 11. Nc4 {[%clk 0:02:46]}  Ba7 {[%clk 0:02:39]} 12. h3 {[%clk 0:02:37]}  Re8 {[%clk 0:02:39]} 13. Re1 {[%clk 0:02:36]}  Be6 {[%clk 0:02:31]} 14. Ne3 {[%clk 0:02:30]}  Nbd7 {[%clk 0:02:31]} 15. Nd4 {[%clk 0:02:22]}  c6 {[%clk 0:02:23]} 16. Qf3 {[%clk 0:02:18]}  Ne5 {[%clk 0:02:21]} 17. Qd1 {[%clk 0:02:16]}  Ng6 {[%clk 0:02:05]} 18. Bg3 {[%clk 0:02:13]}  d5 {[%clk 0:01:37]} 19. Nxe6 {[%clk 0:02:03]}  Rxe6 {[%clk 0:01:33]} 20. exd5 {[%clk 0:01:57]}  Nxd5 {[%clk 0:01:28]} 21. Nxd5 {[%clk 0:01:55]}  Qxd5 {[%clk 0:00:56]} 22. Rxe6 {[%clk 0:01:53]}  Qxe6 {[%clk 0:00:55]} 23. Qf3 {[%clk 0:01:43]}  Ne5 {[%clk 0:00:37]} 24. Bxe5 {[%clk 0:01:41]}  Qxe5 {[%clk 0:00:38]} 25. Rd1 {[%clk 0:01:35]}  Re8 {[%clk 0:00:15]} 26. Bc4 {[%clk 0:01:31]}  Qe7 {[%clk 0:00:08]} 27. Qf5 {[%clk 0:01:25]}  Rf8 {[%clk 0:00:02]} 28. g3 {[%clk 0:01:18]}  Qc7 {[%clk 0:00:00]} 29. Kg2 {[%clk 0:01:18]} 1-0


[Site "https://www.chess.com"]

[Event "Titled Tuesday Blitz August 1 Late 2023"]
[White "Tologon tegin, Semetei"]
[Black "D`Arruda, Ricardo D."]
[WhiteFideId "13800574"]
[BlackFideId "100692"]
[WhiteElo "2602"]
[BlackElo "2468"]
[Result "1/2-1/2"]
[Round "7"]
[TimeControl "180+1"]
[Date "2023.08.01"]
[WhiteClock "0:00:06"]
[BlackClock "0:00:37"]
[Board "53"]

1. e4 {[%clk 0:02:03]}  c5 {[%clk 0:02:58]} 2. Nf3 {[%clk 0:02:01]}  Nc6 {[%clk 0:02:59]} 3. d4 {[%clk 0:02:02]}  cxd4 {[%clk 0:03:00]} 4. Nxd4 {[%clk 0:02:03]}  e5 {[%clk 0:03:00]} 5. Nb5 {[%clk 0:02:02]}  a6 {[%clk 0:03:00]} 6. Nd6+ {[%clk 0:02:02]}  Bxd6 {[%clk 0:03:01]} 7. Qxd6 {[%clk 0:02:02]}  Qe7 {[%clk 0:03:02]} 8. Qd1 {[%clk 0:01:59]}  Nf6 {[%clk 0:03:01]} 9. Nc3 {[%clk 0:01:59]}  d6 {[%clk 0:03:01]} 10. Bc4 {[%clk 0:01:55]}  Be6 {[%clk 0:03:00]} 11. Bb3 {[%clk 0:01:53]}  h6 {[%clk 0:02:59]} 12. O-O {[%clk 0:01:53]}  O-O {[%clk 0:02:58]} 13. Be3 {[%clk 0:01:52]}  Rac8 {[%clk 0:02:57]} 14. h3 {[%clk 0:01:50]}  Na5 {[%clk 0:02:56]} 15. Qd2 {[%clk 0:01:29]}  Nc4 {[%clk 0:02:53]} 16. Bxc4 {[%clk 0:01:29]}  Bxc4 {[%clk 0:02:54]} 17. Rfd1 {[%clk 0:01:28]}  Rfd8 {[%clk 0:02:51]} 18. a4 {[%clk 0:01:23]}  d5 {[%clk 0:02:35]} 19. Bb6 {[%clk 0:01:20]}  Rd7 {[%clk 0:02:34]} 20. exd5 {[%clk 0:01:20]}  Bxd5 {[%clk 0:02:34]} 21. Qe3 {[%clk 0:01:15]}  Bc6 {[%clk 0:02:30]} 22. Rxd7 {[%clk 0:00:58]}  Nxd7 {[%clk 0:02:30]} 23. Rd1 {[%clk 0:00:58]}  Qb4 {[%clk 0:02:28]} 24. a5 {[%clk 0:00:51]}  Qxb2 {[%clk 0:02:28]} 25. Nd5 {[%clk 0:00:50]}  Bxd5 {[%clk 0:02:22]} 26. Rxd5 {[%clk 0:00:50]}  Nxb6 {[%clk 0:02:05]} 27. axb6 {[%clk 0:00:51]}  Qxc2 {[%clk 0:01:44]} 28. Rxe5 {[%clk 0:00:48]}  Qc6 {[%clk 0:01:40]} 29. Re7 {[%clk 0:00:45]}  Kf8 {[%clk 0:01:34]} 30. Re5 {[%clk 0:00:23]}  Re8 {[%clk 0:01:27]} 31. Qa3+ {[%clk 0:00:21]}  Kg8 {[%clk 0:01:26]} 32. Re7 {[%clk 0:00:19]}  Rxe7 {[%clk 0:01:23]} 33. Qxe7 {[%clk 0:00:19]}  Qd5 {[%clk 0:01:23]} 34. Qc7 {[%clk 0:00:15]}  a5 {[%clk 0:01:21]} 35. Qc8+ {[%clk 0:00:15]}  Kh7 {[%clk 0:01:20]} 36. Qc2+ {[%clk 0:00:16]}  g6 {[%clk 0:01:19]} 37. g3 {[%clk 0:00:15]}  h5 {[%clk 0:01:16]} 38. h4 {[%clk 0:00:14]}  Qe5 {[%clk 0:00:55]} 39. Qb3 {[%clk 0:00:13]}  Kg7 {[%clk 0:00:52]} 40. Kg2 {[%clk 0:00:12]}  Qa1 {[%clk 0:00:51]} 41. Qd5 {[%clk 0:00:09]}  a4 {[%clk 0:00:45]} 42. Qxb7 {[%clk 0:00:09]}  a3 {[%clk 0:00:45]} 43. Qc7 {[%clk 0:00:05]}  a2 {[%clk 0:00:45]} 44. b7 {[%clk 0:00:06]}  Qb2 {[%clk 0:00:45]} 45. b8=Q {[%clk 0:00:06]}  Qxb8 {[%clk 0:00:44]} 46. Qxb8 {[%clk 0:00:07]}  a1=Q {[%clk 0:00:44]} 47. Qf4 {[%clk 0:00:07]}  Qc3 {[%clk 0:00:43]} 48. Qf3 {[%clk 0:00:07]}  Qe5 {[%clk 0:00:41]} 49. Qd3 {[%clk 0:00:06]}  Qf6 {[%clk 0:00:39]} 50. Qf3 {[%clk 0:00:07]}  Qe5 {[%clk 0:00:38]} 51. Qd3 {[%clk 0:00:07]}  Qb2 {[%clk 0:00:38]} 52. Qf3 {[%clk 0:00:06]}  Qe5 {[%clk 0:00:37]} 1/2-1/2


[Site "https://www.chess.com"]

[Event "Titled Tuesday Blitz August 1 Late 2023"]
[White "NigelDwarf"]
[Black "Skytte, Rasmus"]
[BlackFideId "1404210"]
[WhiteElo "2520"]
[BlackElo "2343"]
[Result "1-0"]
[Round "7"]
[TimeControl "180+1"]
[Date "2023.08.01"]
[WhiteClock "0:00:02"]
[BlackClock "0:00:00"]
[Board "58"]

1. a3 {[%clk 0:02:56]}  d5 {[%clk 0:02:56]} 2. c4 {[%clk 0:02:54]}  e6 {[%clk 0:02:52]} 3. d4 {[%clk 0:02:50]}  Nf6 {[%clk 0:02:42]} 4. Nc3 {[%clk 0:02:37]}  Be7 {[%clk 0:02:27]} 5. Bg5 {[%clk 0:02:31]}  O-O {[%clk 0:02:23]} 6. e3 {[%clk 0:02:31]}  Ne4 {[%clk 0:02:13]} 7. Bxe7 {[%clk 0:02:29]}  Qxe7 {[%clk 0:02:09]} 8. Bd3 {[%clk 0:02:13]}  Nxc3 {[%clk 0:01:56]} 9. bxc3 {[%clk 0:02:14]}  c5 {[%clk 0:01:55]} 10. cxd5 {[%clk 0:02:00]}  exd5 {[%clk 0:01:52]} 11. Ne2 {[%clk 0:02:00]}  Nc6 {[%clk 0:01:51]} 12. O-O {[%clk 0:02:00]}  Bg4 {[%clk 0:01:48]} 13. h3 {[%clk 0:01:51]}  Bh5 {[%clk 0:01:32]} 14. Qc2 {[%clk 0:01:22]}  Bg6 {[%clk 0:01:28]} 15. Nf4 {[%clk 0:01:22]}  Bxd3 {[%clk 0:01:26]} 16. Qxd3 {[%clk 0:01:21]}  Rfd8 {[%clk 0:01:19]} 17. Rab1 {[%clk 0:01:14]}  Rac8 {[%clk 0:01:13]} 18. Rb5 {[%clk 0:01:00]}  b6 {[%clk 0:01:06]} 19. Qf5 {[%clk 0:00:42]}  g6 {[%clk 0:00:53]} 20. Qd3 {[%clk 0:00:34]}  c4 {[%clk 0:00:24]} 21. Qb1 {[%clk 0:00:21]}  Qxa3 {[%clk 0:00:17]} 22. Nxd5 {[%clk 0:00:20]}  a6 {[%clk 0:00:17]} 23. Rxb6 {[%clk 0:00:17]}  Rxd5 {[%clk 0:00:17]} 24. Qe4 {[%clk 0:00:12]}  Qd6 {[%clk 0:00:15]} 25. Rfb1 {[%clk 0:00:12]}  Kg7 {[%clk 0:00:14]} 26. Rb7 {[%clk 0:00:11]}  Rd8 {[%clk 0:00:12]} 27. Qf3 {[%clk 0:00:10]}  a5 {[%clk 0:00:12]} 28. Qxf7+ {[%clk 0:00:09]}  Kh6 {[%clk 0:00:12]} 29. Qxh7+ {[%clk 0:00:08]}  Kg5 {[%clk 0:00:12]} 30. h4+ {[%clk 0:00:05]}  Kf5 {[%clk 0:00:09]} 31. Rf7+ {[%clk 0:00:03]}  Ke4 {[%clk 0:00:08]} 32. Rf4+ {[%clk 0:00:02]}  Kd3 {[%clk 0:00:07]} 33. Rg4 {[%clk 0:00:02]}  Kc2 {[%clk 0:00:07]} 34. Rxg6 {[%clk 0:00:02]}  Kd2 {[%clk 0:00:01]} 35. Rf1 {[%clk 0:00:02]}  Qe6 {[%clk 0:00:00]} 36. Rxe6 {[%clk 0:00:02]} 1-0


[Site "https://www.chess.com"]

[Event "Titled Tuesday Blitz August 1 Late 2023"]
[White "Toncheva, Nadya"]
[Black "Fantastic_Power"]
[WhiteFideId "2924056"]
[WhiteElo "2474"]
[BlackElo "2745"]
[Result "1/2-1/2"]
[Round "7"]
[TimeControl "180+1"]
[Date "2023.08.01"]
[WhiteClock "0:00:12"]
[BlackClock "0:01:13"]
[Board "60"]

1. d4 {[%clk 0:02:57]}  Nf6 {[%clk 0:03:00]} 2. c4 {[%clk 0:02:57]}  e6 {[%clk 0:03:00]} 3. Nc3 {[%clk 0:02:55]}  Bb4 {[%clk 0:03:01]} 4. e3 {[%clk 0:02:56]}  O-O {[%clk 0:03:00]} 5. Ne2 {[%clk 0:02:56]}  Re8 {[%clk 0:02:57]} 6. a3 {[%clk 0:02:55]}  Bf8 {[%clk 0:02:56]} 7. Ng3 {[%clk 0:02:54]}  d5 {[%clk 0:02:52]} 8. Bd3 {[%clk 0:02:53]}  a6 {[%clk 0:02:50]} 9. O-O {[%clk 0:02:52]}  dxc4 {[%clk 0:02:50]} 10. Bxc4 {[%clk 0:02:51]}  b5 {[%clk 0:02:51]} 11. Bd3 {[%clk 0:02:51]}  Bb7 {[%clk 0:02:51]} 12. a4 {[%clk 0:02:36]}  b4 {[%clk 0:02:51]} 13. Nce4 {[%clk 0:02:35]}  Nbd7 {[%clk 0:02:50]} 14. b3 {[%clk 0:02:26]}  c5 {[%clk 0:02:48]} 15. Bb2 {[%clk 0:02:23]}  Rc8 {[%clk 0:02:38]} 16. Rc1 {[%clk 0:02:20]}  Nxe4 {[%clk 0:02:27]} 17. Nxe4 {[%clk 0:02:14]}  cxd4 {[%clk 0:02:19]} 18. Rxc8 {[%clk 0:02:04]}  Qxc8 {[%clk 0:02:17]} 19. Bxd4 {[%clk 0:02:04]}  e5 {[%clk 0:02:18]} 20. Bb2 {[%clk 0:02:01]}  Nc5 {[%clk 0:02:14]} 21. Nxc5 {[%clk 0:01:58]}  Qxc5 {[%clk 0:02:15]} 22. e4 {[%clk 0:01:44]}  Rd8 {[%clk 0:02:12]} 23. Qe2 {[%clk 0:01:43]}  a5 {[%clk 0:02:09]} 24. Rc1 {[%clk 0:01:41]}  Qd6 {[%clk 0:02:09]} 25. Bc4 {[%clk 0:01:30]}  g6 {[%clk 0:02:06]} 26. h3 {[%clk 0:01:29]}  Bh6 {[%clk 0:02:05]} 27. Rc2 {[%clk 0:01:11]}  Qd1+ {[%clk 0:02:02]} 28. Kh2 {[%clk 0:01:11]}  Qxe2 {[%clk 0:01:56]} 29. Rxe2 {[%clk 0:01:12]}  Re8 {[%clk 0:01:44]} 30. g3 {[%clk 0:01:10]}  Kf8 {[%clk 0:01:36]} 31. Re1 {[%clk 0:01:06]}  Bd2 {[%clk 0:01:31]} 32. Rd1 {[%clk 0:00:58]}  Bc3 {[%clk 0:01:28]} 33. Bxc3 {[%clk 0:00:54]}  bxc3 {[%clk 0:01:29]} 34. f3 {[%clk 0:00:38]}  f5 {[%clk 0:01:28]} 35. Rc1 {[%clk 0:00:28]}  fxe4 {[%clk 0:01:26]} 36. fxe4 {[%clk 0:00:28]}  Bxe4 {[%clk 0:01:27]} 37. Rxc3 {[%clk 0:00:29]}  Rd8 {[%clk 0:01:25]} 38. Re3 {[%clk 0:00:27]}  Rd2+ {[%clk 0:01:23]} 39. Kg1 {[%clk 0:00:25]}  Bc6 {[%clk 0:01:21]} 40. Rxe5 {[%clk 0:00:22]}  Rg2+ {[%clk 0:01:22]} 41. Kf1 {[%clk 0:00:23]}  Rxg3 {[%clk 0:01:23]} 42. Rxa5 {[%clk 0:00:22]}  Rxh3 {[%clk 0:01:22]} 43. Rc5 {[%clk 0:00:21]}  Bd7 {[%clk 0:01:20]} 44. a5 {[%clk 0:00:21]}  Ke7 {[%clk 0:01:20]} 45. a6 {[%clk 0:00:21]}  Rh1+ {[%clk 0:01:20]} 46. Kf2 {[%clk 0:00:21]}  Ra1 {[%clk 0:01:21]} 47. Rc7 {[%clk 0:00:20]}  Kd6 {[%clk 0:01:21]} 48. Rb7 {[%clk 0:00:20]}  h5 {[%clk 0:01:16]} 49. a7 {[%clk 0:00:18]}  Kc6 {[%clk 0:01:16]} 50. Bd5+ {[%clk 0:00:17]}  Kxd5 {[%clk 0:01:13]} 51. Rxd7+ {[%clk 0:00:17]}  Kc6 {[%clk 0:01:14]} 52. Rg7 {[%clk 0:00:15]}  Kb6 {[%clk 0:01:13]} 53. Rxg6+ {[%clk 0:00:13]}  Kxa7 {[%clk 0:01:13]} 54. Rh6 {[%clk 0:00:13]}  Ra5 {[%clk 0:01:13]} 55. Kg3 {[%clk 0:00:13]}  Rb5 {[%clk 0:01:14]} 56. Kh4 {[%clk 0:00:13]}  Rxb3 {[%clk 0:01:14]} 57. Rxh5 {[%clk 0:00:13]}  Rb4+ {[%clk 0:01:14]} 58. Kg3 {[%clk 0:00:13]}  Ka6 {[%clk 0:01:13]} 59. Re5 {[%clk 0:00:12]} 1/2-1/2


[Site "https://www.chess.com"]

[Event "Titled Tuesday Blitz August 1 Late 2023"]
[White "Matinian, Nikita"]
[Black "Liu, Casper"]
[WhiteFideId "24129100"]
[BlackFideId "1454153"]
[WhiteElo "2709"]
[BlackElo "2472"]
[Result "0-1"]
[Round "7"]
[TimeControl "180+1"]
[Date "2023.08.01"]
[WhiteClock "0:00:01"]
[BlackClock "0:00:55"]
[Board "61"]

1. e4 {[%clk 0:03:00]}  c5 {[%clk 0:02:54]} 2. Nf3 {[%clk 0:02:59]}  d6 {[%clk 0:02:54]} 3. d4 {[%clk 0:03:00]}  Nf6 {[%clk 0:02:55]} 4. Nc3 {[%clk 0:02:59]}  cxd4 {[%clk 0:02:55]} 5. Nxd4 {[%clk 0:03:00]}  Nc6 {[%clk 0:02:56]} 6. Bg5 {[%clk 0:03:00]}  Bd7 {[%clk 0:02:57]} 7. Nxc6 {[%clk 0:02:55]}  Bxc6 {[%clk 0:02:56]} 8. Bb5 {[%clk 0:02:53]}  Bxb5 {[%clk 0:02:55]} 9. Nxb5 {[%clk 0:02:54]}  Qa5+ {[%clk 0:02:55]} 10. Nc3 {[%clk 0:02:49]}  Qxg5 {[%clk 0:02:55]} 11. h4 {[%clk 0:02:48]}  Qxg2 {[%clk 0:02:55]} 12. Rf1 {[%clk 0:02:46]}  Nxe4 {[%clk 0:02:45]} 13. Qd5 {[%clk 0:02:45]}  f5 {[%clk 0:02:25]} 14. Qxb7 {[%clk 0:02:45]}  Rd8 {[%clk 0:02:22]} 15. O-O-O {[%clk 0:02:44]}  g6 {[%clk 0:02:04]} 16. Nd5 {[%clk 0:02:33]}  Kf7 {[%clk 0:01:51]} 17. Kb1 {[%clk 0:02:32]}  Nc5 {[%clk 0:01:43]} 18. Qxa7 {[%clk 0:02:20]}  Rd7 {[%clk 0:01:40]} 19. Qa3 {[%clk 0:02:07]}  Bg7 {[%clk 0:01:40]} 20. f3 {[%clk 0:01:00]}  Rb8 {[%clk 0:01:38]} 21. b3 {[%clk 0:01:00]}  e6 {[%clk 0:01:21]} 22. Ne3 {[%clk 0:00:54]}  Qe2 {[%clk 0:01:15]} 23. Rfe1 {[%clk 0:00:49]}  Qb5 {[%clk 0:01:15]} 24. h5 {[%clk 0:00:38]}  Na4 {[%clk 0:01:14]} 25. hxg6+ {[%clk 0:00:24]}  hxg6 {[%clk 0:01:13]} 26. Rd3 {[%clk 0:00:20]}  Nc3+ {[%clk 0:01:11]} 27. Kc1 {[%clk 0:00:20]}  Rc8 {[%clk 0:01:04]} 28. f4 {[%clk 0:00:08]}  Nxa2+ {[%clk 0:01:02]} 29. Kb1 {[%clk 0:00:04]}  Nb4 {[%clk 0:00:56]} 30. Rdd1 {[%clk 0:00:01]}  Rcc7 {[%clk 0:00:57]} 31. Nc4 {[%clk 0:00:02]}  Ra7 {[%clk 0:00:55]} 32. Qxa7 {[%clk 0:00:02]}  Rxa7 {[%clk 0:00:54]} 33. Nxd6+ {[%clk 0:00:02]}  Kg8 {[%clk 0:00:55]} 34. Nxb5 {[%clk 0:00:01]}  Ra1# {[%clk 0:00:55]} 0-1


[Site "https://www.chess.com"]

[Event "Titled Tuesday Blitz August 1 Late 2023"]
[White "Rios Escobar, Adan"]
[Black "Goltsev, Dmitry"]
[WhiteFideId "3403645"]
[BlackFideId "24176710"]
[WhiteElo "2458"]
[BlackElo "2646"]
[Result "0-1"]
[Round "7"]
[TimeControl "180+1"]
[Date "2023.08.01"]
[WhiteClock "0:00:00"]
[BlackClock "0:01:33"]
[Board "63"]

1. d4 {[%clk 0:02:57]}  Nf6 {[%clk 0:02:59]} 2. g3 {[%clk 0:02:56]}  g6 {[%clk 0:02:59]} 3. Bg2 {[%clk 0:02:57]}  Bg7 {[%clk 0:02:59]} 4. e4 {[%clk 0:02:58]}  d6 {[%clk 0:02:59]} 5. Ne2 {[%clk 0:02:58]}  O-O {[%clk 0:02:59]} 6. O-O {[%clk 0:02:59]}  e5 {[%clk 0:03:00]} 7. Nbc3 {[%clk 0:02:59]}  Nc6 {[%clk 0:03:00]} 8. dxe5 {[%clk 0:03:00]}  dxe5 {[%clk 0:03:00]} 9. Bg5 {[%clk 0:03:00]}  h6 {[%clk 0:02:59]} 10. Qxd8 {[%clk 0:03:00]}  Rxd8 {[%clk 0:02:57]} 11. Bxf6 {[%clk 0:03:01]}  Bxf6 {[%clk 0:02:58]} 12. Nd5 {[%clk 0:03:02]}  Bg7 {[%clk 0:02:58]} 13. Nxc7 {[%clk 0:03:02]}  Rb8 {[%clk 0:02:58]} 14. Rad1 {[%clk 0:02:59]}  Bg4 {[%clk 0:02:58]} 15. f3 {[%clk 0:02:59]}  Bd7 {[%clk 0:02:57]} 16. Rd2 {[%clk 0:02:47]}  Be6 {[%clk 0:02:45]} 17. Rfd1 {[%clk 0:02:43]}  Rxd2 {[%clk 0:02:43]} 18. Rxd2 {[%clk 0:02:44]}  Bxa2 {[%clk 0:02:43]} 19. b3 {[%clk 0:02:40]}  Bf8 {[%clk 0:02:43]} 20. Nd5 {[%clk 0:02:35]}  Nb4 {[%clk 0:02:32]} 21. Ndc3 {[%clk 0:01:20]}  Rc8 {[%clk 0:02:10]} 22. Kf1 {[%clk 0:01:10]}  Bc5 {[%clk 0:02:03]} 23. Bh3 {[%clk 0:00:56]}  Rc6 {[%clk 0:01:55]} 24. Bd7 {[%clk 0:00:37]}  Rc7 {[%clk 0:01:46]} 25. Bh3 {[%clk 0:00:31]}  Kg7 {[%clk 0:01:35]} 26. Nxa2 {[%clk 0:00:07]}  Nxa2 {[%clk 0:01:34]} 27. c3 {[%clk 0:00:07]}  Nxc3 {[%clk 0:01:32]} 28. Nxc3 {[%clk 0:00:00]}  Bb4 {[%clk 0:01:33]} 0-1


[Site "https://www.chess.com"]